bitfinex/quotes_SOLUSD_20230112
["timestamp","ask_amount","ask_price","bid_price","bid_amount"]
[1673516129387,63.58,16.103,16.088,10.61247441]
[1673516129703,63.58,16.103,16.087,20.0]
[1673516129704,20.0,16.102,16.087,20.0]
[1673516129911,64.55,16.101,16.087,20.0]
[1673516130534,64.55,16.101,16.088,1.92]
[1673516132530,46.59,16.101,16.088,1.92]
[1673516132844,46.58,16.103,16.088,1.92]
[1673516133266,46.58,16.104,16.088,1.92]
[1673516133486,46.58,16.104,16.088,0.96]
[1673516133728,46.58,16.104,16.087,20.0]
[1673516134440,18.92,16.103,16.087,20.0]
[1673516134749,46.58,16.102,16.087,20.0]
[1673516135299,46.58,16.102,16.088,0.96]
[1673516135497,46.58,16.102,16.088,1.92]
[1673516136956,46.58,16.104,16.088,1.92]
[1673516137358,18.92,16.103,16.088,1.92]
[1673516137673,46.58,16.102,16.088,1.92]
[1673516145991,46.58,16.102,16.086,60.56352303]
[1673516146195,17.0,16.101,16.086,60.56352303]
[1673516146406,46.59,16.1,16.086,60.56352303]
[1673516146730,17.0,16.099,16.086,80.56352303]
[1673516146939,17.96,16.099,16.086,80.56352303]
[1673516148414,17.96,16.099,16.087,20.0]
[1673516151447,0.96,16.099,16.087,20.0]
[1673516152304,46.58,16.104,16.087,20.0]
[1673516152493,17.0,16.103,16.088,0.96]
[1673516152703,20.0,16.106,16.089,27.77]
[1673516152923,46.56,16.111,16.09,20.0]
[1673516153140,46.55,16.113,16.091,30.91143949]
[1673516153454,46.55,16.114,16.093,0.94143949]
[1673516153659,46.55,16.114,16.095,0.99125163]
[1673516153857,46.55,16.114,16.096,0.96]
[1673516154070,46.54,16.118,16.098,1.19836494]
[1673516154278,46.54,16.118,16.101,1.32752921]
[1673516154492,109.544,16.124,16.101,1.32752921]
[1673516154493,46.52,16.123,16.103,20.0]
[1673516154713,46.52,16.123,16.104,21.46021409]
[1673516154917,46.52,16.123,16.105,0.96]
[1673516155139,20.0,16.122,16.105,20.96]
[1673516155342,46.53,16.121,16.106,20.96]
[1673516155555,46.52,16.123,16.107,20.0]
[1673516155762,46.52,16.123,16.108,1.92]
[1673516156605,17.0,16.122,16.108,1.92]
[1673516156923,46.53,16.121,16.108,1.92]
[1673516157137,46.52,16.125,16.107,20.0]
[1673516158287,17.0,16.124,16.107,20.0]
[1673516158500,46.52,16.123,16.107,20.0]
[1673516158709,17.96,16.122,16.107,20.0]
[1673516158919,47.49,16.121,16.107,20.0]
[1673516159243,17.0,16.12,16.107,20.0]
[1673516159426,46.53,16.119,16.107,20.0]
[1673516159641,17.96,16.118,16.107,20.0]
[1673516163971,17.96,16.118,16.106,40.0]
[1673516166718,46.52,16.122,16.107,0.96]
[1673516167027,46.51,16.126,16.107,20.96]
[1673516167217,20.0,16.125,16.107,115.91285642]
[1673516167427,46.52,16.124,16.107,115.91285642]
[1673516168495,46.52,16.124,16.107,126.52533083]
[1673516168812,46.52,16.124,16.108,20.96]
[1673516169225,46.52,16.124,16.108,67.40896696]
[1673516169437,46.52,16.124,16.109,0.96]
[1673516169649,46.52,16.124,16.11,0.96]
[1673516169866,46.52,16.124,16.111,0.96]
[1673516170088,46.52,16.124,16.111,20.96]
[1673516173017,46.52,16.124,16.112,0.96]
[1673516173232,20.0,16.125,16.112,0.96]
[1673516173447,46.52,16.124,16.113,0.96]
[1673516173756,46.52,16.125,16.113,0.96]
[1673516176282,46.52,16.125,16.114,0.96]
[1673516178176,46.52,16.125,16.111,20.0]
[1673516178478,17.0,16.124,16.107,20.0]
[1673516178691,46.52,16.123,16.107,20.0]
[1673516178906,20.0,16.121,16.107,20.0]
[1673516179116,63.53,16.12,16.107,20.0]
[1673516179516,63.53,16.12,16.106,40.0]
[1673516179726,0.96,16.119,16.106,40.0]
[1673516180049,46.54,16.118,16.106,40.0]
[1673516182250,47.49,16.119,16.106,40.0]
[1673516182585,17.0,16.118,16.106,40.0]
[1673516182987,0.96,16.119,16.107,20.0]
[1673516183322,13.13,16.12,16.107,20.0]
[1673516183757,46.52,16.124,16.108,0.96]
[1673516184073,46.52,16.125,16.108,0.96]
[1673516185837,38.92,16.124,16.107,20.0]
[1673516186154,46.52,16.123,16.107,20.0]
[1673516186364,17.96,16.122,16.107,20.0]
[1673516186557,46.53,16.121,16.107,20.0]
[1673516186769,17.96,16.12,16.107,20.0]
[1673516186979,46.53,16.119,16.107,20.0]
[1673516188478,17.96,16.118,16.107,20.0]
[1673516189103,0.96,16.117,16.107,20.0]
[1673516189529,0.96,16.117,16.106,40.0]
[1673516189949,0.96,16.116,16.106,40.0]
[1673516191202,46.53,16.119,16.106,40.0]
[1673516191423,13.13,16.12,16.107,0.96]
[1673516191740,46.52,16.123,16.107,20.96]
[1673516191955,18.92,16.122,16.107,20.96]
[1673516192160,46.53,16.121,16.107,20.96]
[1673516192684,46.53,16.121,16.107,20.0]
[1673516193002,17.96,16.12,16.107,20.0]
[1673516195530,46.52,16.124,16.107,20.0]
[1673516195841,46.52,16.125,16.108,0.96]
[1673516197199,18.92,16.124,16.108,0.96]
[1673516197537,46.52,16.123,16.108,0.96]
[1673516197913,18.92,16.122,16.108,0.96]
[1673516198550,1.92,16.122,16.108,0.96]
[1673516198763,48.44,16.122,16.109,0.96]
[1673516199613,46.52,16.122,16.109,0.96]
[1673516199825,46.52,16.124,16.11,0.96]
[1673516200031,46.52,16.124,16.111,0.96]
[1673516200244,46.52,16.124,16.112,0.96]
[1673516200453,46.52,16.125,16.113,0.96]
[1673516202361,46.52,16.125,16.112,0.96]
[1673516202667,46.52,16.125,16.107,20.0]
[1673516202883,18.92,16.124,16.108,0.96]
[1673516203104,46.52,16.123,16.109,0.96]
[1673516205530,46.52,16.123,16.11,13.13]
[1673516208152,17.96,16.122,16.11,13.13]
[1673516208338,46.53,16.121,16.11,13.13]
[1673516209495,20.0,16.123,16.11,13.13]
[1673516209809,46.52,16.122,16.11,13.13]
[1673516210362,17.96,16.121,16.11,13.13]
[1673516210542,46.53,16.12,16.11,13.13]
[1673516211715,46.53,16.12,16.107,20.0]
[1673516212245,46.53,16.12,16.108,0.96]
[1673516212558,46.52,16.122,16.108,0.96]
[1673516213400,46.52,16.124,16.108,0.96]
[1673516213589,21.92,16.123,16.108,0.96]
[1673516213907,46.52,16.122,16.108,0.96]
[1673516217289,0.96,16.121,16.107,20.0]
[1673516217494,46.53,16.12,16.106,20.0]
[1673516218875,46.53,16.12,16.107,0.96]
[1673516222127,46.53,16.12,16.106,20.0]
[1673516222342,18.92,16.119,16.106,20.0]
[1673516222564,46.54,16.118,16.106,20.0]
[1673516223174,46.54,16.118,16.103,20.0]
[1673516223393,17.96,16.117,16.103,40.0]
[1673516223804,0.96,16.116,16.103,40.0]
[1673516224541,0.96,16.116,16.104,20.0]
[1673516224755,46.54,16.115,16.105,20.0]
[1673516224968,0.96,16.117,16.105,20.0]
[1673516226103,17.0,16.118,16.105,20.0]
[1673516226313,0.96,16.117,16.105,20.0]
[1673516227577,47.5,16.117,16.105,20.0]
[1673516230669,69.8002,16.128,16.11,13.13]
[1673516230966,69.8002,16.128,16.111,235.35019037]
[1673516231180,69.8002,16.128,16.112,0.88245075]
[1673516231388,69.8002,16.128,16.112,31.48413047]
[1673516231581,69.8002,16.128,16.114,0.88245075]
[1673516231792,46.51,16.127,16.114,0.88245075]
[1673516232010,46.51,16.127,16.114,10.60167972]
[1673516232218,46.51,16.127,16.116,0.68617014]
[1673516233167,17.96,16.126,16.116,0.68617014]
[1673516233370,0.96,16.125,16.115,20.0]
[1673516233805,0.96,16.124,16.115,30.60167972]
[1673516236099,0.96,16.124,16.115,20.0]
[1673516236652,0.96,16.124,16.112,20.0]
[1673516236963,20.0,16.125,16.113,10.60167972]
[1673516237170,17.96,16.124,16.114,20.0]
[1673516237678,46.51,16.127,16.114,30.60167972]
[1673516237893,17.0,16.126,16.114,30.60167972]
[1673516238300,46.51,16.127,16.114,30.60167972]
[1673516238515,20.0,16.127,16.114,30.60167972]
[1673516238745,17.0,16.126,16.114,30.60167972]
[1673516238956,0.96,16.125,16.114,30.60167972]
[1673516239784,0.96,16.124,16.114,30.60167972]
[1673516242331,0.96,16.123,16.114,30.60167972]
[1673516242752,0.96,16.123,16.115,0.66917985]
[1673516242962,0.96,16.123,16.114,30.60167972]
[1673516244309,0.96,16.123,16.115,0.67712087]
[1673516244528,0.96,16.123,16.114,30.60167972]
[1673516244744,0.96,16.123,16.115,0.66534579]
[1673516244950,0.96,16.123,16.114,30.60167972]
[1673516245166,0.96,16.123,16.115,0.66580852]
[1673516245375,0.96,16.123,16.114,30.60167972]
[1673516245589,0.96,16.123,16.115,0.66573887]
[1673516245905,0.96,16.123,16.114,30.60167972]
[1673516247155,0.96,16.123,16.114,20.0]
[1673516247371,1.92,16.122,16.112,30.60167972]
[1673516250746,1.92,16.122,16.112,20.0]
[1673516251054,13.05,16.12,16.11,313.49334368]
[1673516251261,13.05,16.12,16.106,106.72245614]
[1673516251262,13.05,16.12,16.107,20.0]
[1673516251884,1.92,16.119,16.107,20.0]
[1673516252095,1.92,16.119,16.107,30.60167972]
[1673516254946,1.92,16.119,16.107,10.60167972]
[1673516258207,1.92,16.119,16.105,20.0]
[1673516258421,1.92,16.119,16.106,20.0]
[1673516259551,18.92,16.119,16.106,20.0]
[1673516259763,20.0,16.118,16.105,20.0]
[1673516259990,17.0,16.117,16.105,20.0]
[1673516260210,1.92,16.116,16.105,20.0]
[1673516263134,1.92,16.116,16.103,20.0]
[1673516263345,1.92,16.116,16.104,20.0]
[1673516263564,1.92,16.116,16.105,20.0]
[1673516265362,1.92,16.116,16.103,20.0]
[1673516268106,1.92,16.116,16.102,40.0]
[1673516269681,17.0,16.117,16.102,40.0]
[1673516269993,20.0,16.119,16.102,40.0]
[1673516271469,1.92,16.118,16.102,40.0]
[1673516271891,18.92,16.118,16.102,40.0]
[1673516272314,18.92,16.118,16.102,20.0]
[1673516273568,20.0,16.117,16.102,20.0]
[1673516273889,20.0,16.115,16.099,111.6613]
[1673516274076,13.13,16.11,16.099,111.6613]
[1673516274288,13.13,16.11,16.095,20.0]
[1673516274712,13.13,16.11,16.096,0.96]
[1673516275675,20.0,16.115,16.096,0.96]
[1673516275990,20.0,16.113,16.096,0.96]
[1673516276311,17.0,16.112,16.096,0.96]
[1673516276614,17.0,16.112,16.096,20.96]
[1673516277777,1.92,16.111,16.096,20.96]
[1673516278083,1.92,16.111,16.097,20.0]
[1673516280505,1.92,16.111,16.096,20.96]
[1673516281774,1.92,16.111,16.096,20.0]
[1673516282502,1.92,16.111,16.097,20.0]
[1673516282726,20.0,16.115,16.098,0.96]
[1673516282913,20.0,16.115,16.097,20.0]
[1673516283118,20.0,16.115,16.098,0.96]
[1673516284403,18.92,16.114,16.098,0.96]
[1673516284923,18.92,16.114,16.096,20.0]
[1673516285137,20.0,16.113,16.096,20.0]
[1673516285325,18.92,16.112,16.096,20.0]
[1673516286391,18.92,16.112,16.097,20.0]
[1673516286789,46.54,16.115,16.1,13.13]
[1673516287006,59.56,16.12,16.1,13.13]
[1673516287228,13.03,16.12,16.101,131.0639]
[1673516287436,13.03,16.12,16.102,20.96]
[1673516287760,13.03,16.12,16.104,20.0]
[1673516287967,13.03,16.12,16.105,22.986]
[1673516288914,13.03,16.12,16.106,20.0]
[1673516291223,17.0,16.119,16.106,20.0]
[1673516294060,46.52,16.124,16.106,20.0]
[1673516294275,177.2632,16.129,16.107,1.92]
[1673516294467,66.52,16.125,16.108,10.14]
[1673516294678,66.52,16.125,16.109,1.92]
[1673516294897,66.52,16.125,16.108,10.14]
[1673516295535,18.92,16.124,16.11,13.13]
[1673516297323,46.52,16.123,16.11,13.13]
[1673516297535,17.0,16.122,16.11,13.13]
[1673516297727,1.92,16.121,16.11,13.13]
[1673516297939,1.92,16.121,16.106,20.0]
[1673516299101,1.92,16.121,16.105,20.0]
[1673516299417,21.92,16.121,16.105,20.0]
[1673516299638,63.53,16.12,16.105,20.0]
[1673516299838,0.96,16.119,16.105,20.0]
[1673516300454,0.96,16.118,16.105,20.0]
[1673516300979,17.0,16.12,16.105,20.0]
[1673516301185,0.96,16.119,16.106,29.471]
[1673516301420,0.96,16.12,16.106,29.471]
[1673516301629,0.96,16.12,16.106,28.511]
[1673516304373,0.96,16.12,16.106,20.0]
[1673516306163,0.96,16.12,16.105,20.0]
[1673516306470,14.01,16.12,16.105,20.0]
[1673516306677,17.0,16.119,16.104,20.0]
[1673516306896,21.92,16.118,16.104,20.0]
[1673516307204,17.0,16.117,16.104,20.0]
[1673516307418,20.0,16.115,16.098,109.6939]
[1673516307611,46.55,16.114,16.098,109.6939]
[1673516307819,18.92,16.113,16.098,109.6939]
[1673516308264,1.92,16.113,16.098,109.6939]
[1673516308473,20.0,16.111,16.098,109.6939]
[1673516308877,17.0,16.11,16.098,109.6939]
[1673516311837,30.13,16.11,16.098,109.6939]
[1673516316667,30.13,16.11,16.092,115.3637]
[1673516316988,30.13,16.11,16.093,136.2139]
[1673516317196,30.13,16.11,16.094,20.0]
[1673516317618,30.13,16.11,16.095,20.0]
[1673516317929,30.13,16.11,16.096,20.0]
[1673516322561,30.13,16.11,16.096,22.745]
[1673516325929,30.13,16.11,16.096,2.745]
[1673516326239,20.0,16.115,16.095,30.93]
[1673516326464,66.54,16.116,16.096,20.96]
[1673516326643,66.54,16.116,16.097,14.31]
[1673516326852,66.54,16.116,16.098,20.96]
[1673516327065,66.54,16.116,16.099,16.58]
[1673516327500,66.54,16.116,16.098,20.96]
[1673516327693,20.0,16.114,16.098,20.96]
[1673516327903,17.0,16.113,16.098,20.96]
[1673516328136,1.92,16.112,16.098,20.96]
[1673516328970,1.92,16.112,16.098,20.0]
[1673516338854,1.92,16.112,16.096,20.0]
[1673516340406,1.92,16.112,16.095,20.0]
[1673516341375,21.92,16.112,16.095,20.0]
[1673516341593,17.0,16.111,16.094,40.0]
[1673516341799,0.96,16.11,16.094,40.0]
[1673516342021,1.92,16.11,16.094,40.0]
[1673516344959,46.55,16.114,16.094,40.0]
[1673516345146,0.5,31.998,16.095,20.0]
[1673516345147,86.54,16.116,16.095,20.0]
[1673516345357,86.54,16.116,16.097,20.0]
[1673516346318,18.92,16.114,16.097,20.0]
[1673516348300,1.92,16.114,16.097,20.0]
[1673516352509,21.92,16.114,16.097,20.0]
[1673516352726,17.0,16.113,16.097,20.0]
[1673516353049,0.96,16.112,16.097,20.0]
[1673516357780,0.96,16.111,16.097,20.0]
[1673516358308,17.0,16.113,16.097,20.0]
[1673516359232,0.96,16.112,16.097,20.0]
[1673516360814,0.96,16.112,16.095,20.0]
[1673516361028,0.96,16.112,16.097,20.0]
[1673516363462,0.96,16.112,16.1,13.13]
[1673516363773,0.96,16.111,16.102,20.0]
[1673516364175,0.96,16.111,16.103,20.0]
[1673516366287,17.0,16.113,16.103,20.0]
[1673516367238,17.0,16.113,16.102,40.0]
[1673516367452,17.0,16.113,16.102,20.0]
[1673516368818,17.0,16.113,16.097,39.65750696]
[1673516369027,17.0,16.113,16.094,129.5392]
[1673516369242,20.0,16.113,16.094,129.5392]
[1673516369440,17.96,16.112,16.094,129.5392]
[1673516369866,13.05,16.11,16.094,129.5392]
[1673516370186,17.0,16.109,16.094,129.5392]
[1673516370399,0.96,16.108,16.096,20.0]
[1673516375118,0.96,16.108,16.095,20.0]
[1673516375337,0.96,16.107,16.096,20.0]
[1673516375870,13.05,16.11,16.096,20.0]
[1673516376057,178.6454,16.119,16.097,0.96]
[1673516376272,20.0,16.115,16.097,0.96]
[1673516377328,18.92,16.114,16.097,0.96]
[1673516379541,1.92,16.114,16.097,0.96]
[1673516379946,1.92,16.114,16.098,4.619]
[1673516380471,1.92,16.114,16.099,0.96]
[1673516380681,1.92,16.114,16.097,5.164]
[1673516381108,48.47,16.114,16.097,5.164]
[1673516381328,17.0,16.113,16.097,5.164]
[1673516381946,17.0,16.114,16.097,5.164]
[1673516385851,46.55,16.113,16.096,42.35]
[1673516386066,17.0,16.112,16.096,42.35]
[1673516386667,63.55,16.113,16.096,42.35]
[1673516387109,17.0,16.113,16.096,42.35]
[1673516389526,46.55,16.114,16.096,42.35]
[1673516389737,46.54,16.115,16.097,0.96]
[1673516389960,66.54,16.116,16.1,13.13]
[1673516390881,17.0,16.115,16.1,13.13]
[1673516391091,1.92,16.114,16.1,13.13]
[1673516394042,48.47,16.114,16.1,13.13]
[1673516394256,17.0,16.113,16.1,13.13]
[1673516394462,63.54,16.115,16.1,13.13]
[1673516394664,0.96,16.114,16.1,13.13]
[1673516395938,0.96,16.113,16.1,13.13]
[1673516396138,0.96,16.113,16.098,19.41]
[1673516396139,17.96,16.113,16.098,19.41]
[1673516396350,17.96,16.112,16.098,19.41]
[1673516396554,0.96,16.112,16.098,19.41]
[1673516397923,0.96,16.112,16.097,20.0]
[1673516398673,17.0,16.113,16.097,20.0]
[1673516398882,0.96,16.112,16.097,20.0]
[1673516404140,0.96,16.112,16.096,59.65750696]
[1673516404460,13.05,16.11,16.095,20.0]
[1673516404648,17.0,16.109,16.095,20.0]
[1673516404987,0.96,16.108,16.095,20.0]
[1673516405300,0.96,16.108,16.095,40.0]
[1673516405507,17.0,16.109,16.095,40.0]
[1673516405508,13.05,16.11,16.096,20.96]
[1673516405821,20.0,16.114,16.097,0.96]
[1673516406035,18.92,16.113,16.097,0.96]
[1673516406961,18.92,16.113,16.096,20.96]
[1673516408116,1.92,16.113,16.096,20.96]
[1673516416133,112.1154,16.119,16.1,65.58]
[1673516416321,32.39949516,16.126,16.101,21.92]
[1673516416527,20.0,16.125,16.102,20.0]
[1673516416759,20.0,16.124,16.103,21.92]
[1673516416971,20.0,16.124,16.11,13.13]
[1673516417480,66.52,16.124,16.11,13.13]
[1673516417684,0.96,16.123,16.11,13.13]
[1673516418116,0.96,16.122,16.11,13.13]
[1673516419061,0.96,16.122,16.105,20.0]
[1673516419275,0.96,16.122,16.106,20.0]
[1673516419798,0.96,16.121,16.106,20.0]
[1673516420221,17.0,16.123,16.106,20.0]
[1673516421157,0.96,16.122,16.106,20.0]
[1673516423696,0.96,16.122,16.104,20.0]
[1673516423894,0.96,16.122,16.105,20.0]
[1673516424105,0.96,16.122,16.106,20.0]
[1673516427375,0.96,16.121,16.106,20.0]
[1673516428845,84.55496728,16.12,16.09,399.64301844]
[1673516429064,20.0,16.118,16.095,20.0]
[1673516429273,84.5,16.117,16.095,20.0]
[1673516429486,20.0,16.116,16.095,20.0]
[1673516429805,38.92,16.115,16.095,20.0]
[1673516430225,20.0,16.114,16.096,0.96]
[1673516430441,17.0,16.113,16.096,0.96]
[1673516430752,1.92,16.112,16.095,20.0]
[1673516431489,1.92,16.112,16.097,20.0]
[1673516437053,0.08033755,16.097,16.096,20.0]
[1673516437371,0.08033755,16.097,16.096,0.96]
[1673516442112,13.08,16.11,16.097,0.01927484]
[1673516442320,20.0,16.108,16.097,0.01927484]
[1673516442546,17.0,16.107,16.097,0.01927484]
[1673516442723,0.96,16.106,16.097,0.01927484]
[1673516444002,0.96,16.105,16.097,0.01927484]
[1673516449452,0.96,16.104,16.097,0.01927484]
[1673516455569,17.0,16.105,16.097,0.01927484]
[1673516455963,46.57,16.108,16.097,0.01927484]
[1673516456174,20.0,16.106,16.097,0.01927484]
[1673516456401,17.96,16.107,16.097,0.01927484]
[1673516456402,0.96,16.105,16.097,0.01927484]
[1673516456598,17.0,16.107,16.097,0.01927484]
[1673516456810,0.96,16.106,16.097,0.01927484]
[1673516457651,46.57,16.105,16.097,0.01927484]
[1673516457867,20.0,16.103,16.097,0.01927484]
[1673516458092,17.0,16.102,16.097,0.01927484]
[1673516458289,0.96,16.101,16.097,0.01927484]
[1673516458698,0.96,16.1,16.097,0.01927484]
[1673516460698,17.0,16.102,16.097,0.01927484]
[1673516461024,17.0,16.103,16.097,0.01927484]
[1673516461224,0.96,16.102,16.097,0.01927484]
[1673516461765,47.54,16.102,16.097,0.01927484]
[1673516461981,17.0,16.101,16.097,0.01927484]
[1673516462494,20.0,16.105,16.097,0.01927484]
[1673516462694,168.0972,16.11,16.097,0.01927484]
[1673516462905,121.5372,16.11,16.097,0.01927484]
[1673516463118,20.0,16.109,16.097,0.01927484]
[1673516463953,0.96,16.108,16.097,0.01927484]
[1673516464384,46.57,16.107,16.097,0.01927484]
[1673516464579,20.0,16.105,16.097,0.01927484]
[1673516465436,0.96,16.104,16.097,0.01927484]
[1673516466592,46.57,16.108,16.097,0.01927484]
[1673516466791,20.96,16.107,16.097,0.01927484]
[1673516466994,37.96,16.107,16.097,0.01927484]
[1673516467830,17.0,16.107,16.097,0.01927484]
[1673516468045,46.56,16.111,16.097,0.01927484]
[1673516468690,20.0,16.108,16.097,0.01927484]
[1673516469223,0.96,16.107,16.097,0.01927484]
[1673516469536,1.92,16.107,16.097,0.01927484]
[1673516469724,17.96,16.107,16.097,0.01927484]
[1673516469932,20.0,16.105,16.097,0.01927484]
[1673516470357,17.0,16.104,16.097,0.01927484]
[1673516470567,20.0,16.103,16.097,0.01927484]
[1673516473312,17.0,16.102,16.097,0.01927484]
[1673516474796,46.58,16.104,16.097,0.01927484]
[1673516475007,20.0,16.105,16.097,0.01927484]
[1673516475537,46.57,16.107,16.097,0.01927484]
[1673516475848,17.0,16.106,16.097,0.01927484]
[1673516476669,20.0,16.105,16.097,0.01927484]
[1673516476883,17.0,16.104,16.097,0.01927484]
[1673516477318,1.92,16.103,16.097,0.01927484]
[1673516478683,66.57,16.105,16.097,0.01927484]
[1673516478873,17.0,16.104,16.097,0.01927484]
[1673516479078,1.92,16.103,16.097,0.01927484]
[1673516479300,17.0,16.104,16.097,0.01927484]
[1673516481626,20.0,16.106,16.097,0.01927484]
[1673516481831,17.0,16.105,16.097,0.01927484]
[1673516482883,46.57,16.107,16.097,0.01927484]
[1673516483096,20.0,16.106,16.097,0.01927484]
[1673516486893,17.96,16.105,16.097,0.01927484]
[1673516487314,0.96,16.104,16.097,0.01927484]
[1673516488047,46.57,16.105,16.097,0.01927484]
[1673516488256,66.57,16.108,16.097,0.01927484]
[1673516488469,17.0,16.107,16.097,0.01927484]
[1673516488897,20.0,16.105,16.097,0.01927484]
[1673516489096,18.92,16.104,16.097,0.01927484]
[1673516489812,20.0,16.103,16.097,0.01927484]
[1673516490249,17.0,16.102,16.097,0.01927484]
[1673516490464,20.0,16.103,16.097,0.01927484]
[1673516491708,17.0,16.104,16.097,0.01927484]
[1673516491957,66.57,16.105,16.097,0.01927484]
[1673516494236,17.0,16.104,16.097,0.01927484]
[1673516496056,16.92352629,16.104,16.097,0.01927484]
[1673516496890,66.57,16.105,16.097,0.01927484]
[1673516497207,20.0,16.106,16.097,0.01927484]
[1673516498043,46.57,16.107,16.097,0.01927484]
[1673516498261,20.0,16.105,16.097,0.01927484]
[1673516500978,46.57,16.107,16.097,0.01927484]
[1673516502036,20.0,16.106,16.097,0.01927484]
[1673516502236,18.92,16.105,16.097,0.01927484]
[1673516503825,20.0,16.104,16.097,0.01927484]
[1673516505079,66.57,16.108,16.097,0.01927484]
[1673516505716,66.07,16.108,16.097,0.01927484]
[1673516506377,17.0,16.107,16.097,0.01927484]
[1673516507809,1.92,16.106,16.097,0.01927484]
[1673516508030,46.57,16.106,16.097,0.01927484]
[1673516508243,66.56,16.109,16.097,0.01927484]
[1673516509400,46.56,16.109,16.1,13.13]
[1673516509720,20.0,16.114,16.1,13.13]
[1673516509721,46.55,16.112,16.101,0.96]
[1673516509936,20.0,16.113,16.101,0.96]
[1673516510462,46.55,16.114,16.101,0.96]
[1673516512986,46.55,16.114,16.102,0.96]
[1673516513181,46.54,16.118,16.103,0.96]
[1673516513394,46.54,16.118,16.104,0.96]
[1673516514113,46.54,16.118,16.11,13.13]
[1673516514323,116.8991,16.124,16.11,13.13]
[1673516514324,46.52,16.123,16.11,13.13]
[1673516514858,46.51,16.126,16.111,1.92]
[1673516515295,40.0,16.125,16.11,13.13]
[1673516515489,46.52,16.124,16.11,13.13]
[1673516516034,46.52,16.124,16.111,0.96]
[1673516516527,46.52,16.124,16.111,1.92]
[1673516517169,46.52,16.124,16.11,13.13]
[1673516517799,46.52,16.124,16.111,1.92]
[1673516518528,46.52,16.124,16.11,13.13]
[1673516518738,17.0,16.123,16.11,13.13]
[1673516518962,46.52,16.122,16.11,13.13]
[1673516522661,46.52,16.124,16.11,13.13]
[1673516522973,17.0,16.123,16.11,13.13]
[1673516523190,46.52,16.122,16.11,13.13]
[1673516524867,46.51,16.127,16.111,13.06073663]
[1673516525063,46.5,16.13,16.113,20.0]